fUST/lending_fUST_20240723
["ID","MTS","AMOUNT","RATE_DAILY","PERIOD"]
[333009960,1721742659117,-500.0,0.0001452,2]
[333009961,1721742659127,-500.0,0.0001452,2]
[333009962,1721742659136,-500.0,0.0001452,2]
[333009963,1721742659146,-247.20075316,0.0001452,2]
[333009964,1721742659155,-500.0,0.0001452,2]
[333009965,1721742659165,-500.0,0.0001452,2]
[333009966,1721742659175,-500.0,0.0001452,2]
[333009967,1721742659185,-500.0,0.0001452,2]
[333009968,1721742659194,-500.0,0.0001452,2]
[333009969,1721742659204,-336.22238124,0.0001452,2]
[333009970,1721742659214,-500.0,0.0001452,2]
[333009971,1721742659224,-500.0,0.0001452,2]
[333009972,1721742659234,-500.0,0.0001452,2]
[333009973,1721742659244,-500.0,0.0001452,2]
[333009974,1721742659253,-500.0,0.0001452,2]
[333009975,1721742659267,-500.0,0.0001452,2]
[333009976,1721742659277,-173.50801192,0.0001452,2]
[333009977,1721742659286,-505.42141396,0.0001452,2]
[333009978,1721742659296,-500.0,0.0001452,2]
[333009979,1721742659307,-500.0,0.0001452,2]
[333009980,1721742659318,-500.0,0.0001452,2]
[333009981,1721742659328,-500.0,0.0001452,2]
[333009982,1721742659338,-500.0,0.0001452,2]
[333009983,1721742659347,-500.0,0.0001452,2]
[333009984,1721742659359,-500.0,0.0001452,2]
[333009985,1721742659370,-500.0,0.0001452,2]
[333009986,1721742659380,-500.0,0.0001452,2]
[333009987,1721742659390,-500.0,0.0001452,2]
[333009988,1721742659402,-500.0,0.0001452,2]
[333009989,1721742659412,-500.0,0.0001452,2]
[333009990,1721742659421,-500.0,0.0001452,2]
[333009991,1721742659431,-500.0,0.0001452,2]
[333009992,1721742659441,-500.0,0.0001452,2]
[333009993,1721742659451,-500.0,0.0001452,2]
[333009994,1721742659461,-500.0,0.0001452,2]
[333009995,1721742659471,-500.0,0.0001452,2]
[333009996,1721742659481,-500.0,0.0001452,2]
[333009997,1721742659491,-500.0,0.0001452,2]
[333009998,1721742659502,-500.0,0.0001452,2]
[333009999,1721742659515,-500.0,0.0001452,2]
[333010000,1721742659524,-572.50452548,0.0001452,2]
[333010001,1721742659534,-500.0,0.0001452,2]
[333010002,1721742659544,-565.53406262,0.0001452,2]
[333010003,1721742659554,-500.0,0.0001452,2]
[333010004,1721742659564,-500.0,0.0001452,2]
[333010005,1721742659574,-500.0,0.0001452,2]
[333010006,1721742659584,-500.0,0.0001452,2]
[333010007,1721742659598,-500.0,0.0001452,2]
[333010008,1721742659607,-500.0,0.0001452,2]
[333010009,1721742659618,-500.0,0.0001452,2]
[333010010,1721742659628,-500.0,0.0001452,2]
[333010011,1721742659638,-500.0,0.0001452,2]
[333010012,1721742659649,-500.0,0.0001452,2]
[333010013,1721742659659,-500.0,0.0001452,2]
[333010014,1721742659670,-500.0,0.0001452,2]
[333010015,1721742659679,-500.0,0.0001452,2]
[333010016,1721742659689,-500.0,0.0001452,2]
[333010017,1721742659699,-500.0,0.0001452,2]
[333010018,1721742659709,-500.0,0.0001452,2]
[333010019,1721742659720,-500.0,0.0001452,2]
[333010020,1721742659730,-500.0,0.0001452,2]
[333010021,1721742659741,-506.05451033,0.0001452,2]
[333010022,1721742659751,-545.6,0.0001452,2]
[333010023,1721742659766,-500.0,0.0001452,2]
[333010024,1721742659776,-500.0,0.0001452,2]
[333010025,1721742659785,-500.0,0.0001452,2]
[333010026,1721742659794,-500.0,0.0001452,2]
[333010027,1721742659804,-500.0,0.0001452,2]
[333010028,1721742659813,-500.0,0.0001452,2]
[333010029,1721742659823,-500.0,0.0001452,2]
[333010030,1721742659833,-181.48591883,0.0001452,2]
[333010031,1721742659844,-500.0,0.0001452,2]
[333010032,1721742659856,-500.0,0.0001452,2]
[333010033,1721742659866,-500.0,0.0001452,2]
[333010034,1721742659877,-500.0,0.0001452,2]
[333010035,1721742659887,-500.0,0.0001452,2]
[333010036,1721742659897,-500.0,0.0001452,2]
[333010037,1721742659909,-500.0,0.0001452,2]
[333010038,1721742659922,-500.0,0.0001452,2]
[333010039,1721742659932,-401.02028102,0.0001452,2]
[333010040,1721742659944,-500.0,0.0001452,2]
[333010041,1721742659955,-500.0,0.0001452,2]
[333010042,1721742659966,-500.0,0.0001452,2]
[333010043,1721742659975,-500.0,0.0001452,2]
[333010044,1721742659985,-500.0,0.0001452,2]
[333010045,1721742659997,-500.0,0.0001452,2]
[333010046,1721742660007,-500.0,0.0001452,2]
[333010047,1721742660023,-500.0,0.0001452,2]
[333010048,1721742660032,-500.0,0.0001452,2]
[333010049,1721742660042,-500.0,0.0001452,2]
[333010050,1721742660054,-500.0,0.0001452,2]
[333010051,1721742660066,-500.0,0.0001452,2]
[333010052,1721742660077,-500.0,0.0001452,2]
[333010053,1721742660087,-500.0,0.0001452,2]
[333010054,1721742660260,-500.0,0.0001452,2]
[333010055,1721742660275,-500.0,0.0001452,2]
[333010056,1721742660286,-500.0,0.0001452,2]
[333010057,1721742660296,-413.47475464,0.0001452,2]
[333010058,1721742660305,-500.0,0.0001452,2]
[333010059,1721742660316,-151.0,0.0001452,2]
[333010060,1721742660328,-500.0,0.0001452,2]
[333010061,1721742660340,-500.0,0.0001452,2]
[333010062,1721742660351,-151.0,0.0001452,2]
[333010063,1721742660362,-151.0,0.0001452,2]
[333010064,1721742660374,-151.0,0.0001452,2]
[333010065,1721742660383,-5305.4820148,0.00014623,2]
[333010066,1721742660393,-791.64122334,0.0001469,2]
[333010067,1721742660402,-154.76012181,0.0001469,2]
[333010068,1721742660412,-367.37419226,0.00014721,2]
[333010069,1721742660423,-151.0,0.00014723,2]
[333010070,1721742660432,-151.0,0.00014723,2]
[333010071,1721742660442,-1115.145337,0.00014723,2]
[333010072,1721742660452,-1115.145337,0.00014723,2]
[333010073,1721742660461,-1184.49572713,0.00014726,2]
[333010074,1721742660472,-683.87,0.00014793,2]
[333010075,1721742660481,-2657.48,0.00014794,2]
[333010076,1721742660491,-528.5,0.00014794,2]
[333010077,1721742660501,-500.0,0.00014794,2]
[333010078,1721742660511,-592.8,0.00014794,2]
[333010079,1721742660522,-505.824768,0.00014794,2]
[333010080,1721742660532,-505.824768,0.00014794,2]
[333010081,1721742660542,-3974.3,0.00014794,2]
[333010082,1721742660551,-500.0,0.00014794,2]
[333010083,1721742660561,-1734.71,0.00014794,2]
[333010084,1721742660570,-817.41,0.00014794,2]
[333010085,1721742660580,-3813.93,0.00014794,2]
[333010086,1721742660590,-2666.32,0.00014794,2]
[333010087,1721742660599,-620.28,0.00014794,2]
[333010088,1721742660609,-500.0,0.00014794,2]
[333010089,1721742660619,-986.25,0.00014794,2]
[333010090,1721742660629,-6006.02,0.00014794,2]
[333010091,1721742660639,-791.14,0.00014794,2]
[333010092,1721742660650,-500.0,0.00014794,2]
[333010093,1721742660662,-500.0,0.00014794,2]
[333010094,1721742660674,-500.0,0.00014794,2]
[333010095,1721742660684,-500.0,0.00014794,2]
[333010096,1721742660694,-500.0,0.00014794,2]
[333010097,1721742660704,-500.0,0.00014794,2]
[333010098,1721742660715,-500.0,0.00014794,2]
[333010099,1721742660726,-500.0,0.00014794,2]
[333010100,1721742660737,-500.0,0.00014794,2]
[333010101,1721742660750,-500.0,0.00014794,2]
[333010102,1721742660760,-245.81,0.00014794,2]
[333010103,1721742660775,-500.0,0.00014794,2]
[333010104,1721742660784,-500.0,0.00014794,2]
[333010105,1721742660794,-500.0,0.00014794,2]
[333010106,1721742660803,-500.0,0.00014794,2]
[333010107,1721742660812,-500.0,0.00014794,2]
[333010108,1721742660822,-500.0,0.00014794,2]
[333010109,1721742660831,-500.0,0.00014794,2]
[333010110,1721742660841,-500.0,0.00014794,2]
[333010111,1721742660851,-500.0,0.00014794,2]
[333010112,1721742660860,-500.0,0.00014794,2]
[333010113,1721742660870,-500.0,0.00014794,2]
[333010114,1721742660880,-500.0,0.00014794,2]
[333010115,1721742660890,-500.0,0.00014794,2]
[333010116,1721742660899,-500.0,0.00014794,2]
[333010117,1721742660909,-500.0,0.00014794,2]
[333010118,1721742660923,-500.0,0.00014794,2]
[333010119,1721742660934,-500.0,0.00014794,2]
[333010120,1721742660944,-500.0,0.00014794,2]
[333010121,1721742660955,-500.0,0.00014794,2]
[333010122,1721742660967,-500.0,0.00014794,2]
[333010123,1721742660978,-500.0,0.00014794,2]
[333010124,1721742660988,-500.0,0.00014794,2]
[333010125,1721742660998,-500.0,0.00014794,2]
[333010126,1721742661008,-500.0,0.00014794,2]
[333010127,1721742661022,-500.0,0.00014794,2]
[333010128,1721742661032,-500.0,0.00014794,2]
[333010129,1721742661041,-500.0,0.00014794,2]
[333010130,1721742661050,-500.0,0.00014794,2]
[333010131,1721742661060,-500.0,0.00014794,2]
[333010132,1721742661069,-500.0,0.00014794,2]
[333010133,1721742661078,-500.0,0.00014794,2]
[333010134,1721742661088,-500.0,0.00014794,2]
[333010135,1721742661097,-500.0,0.00014794,2]
[333010136,1721742661107,-500.0,0.00014794,2]
[333010137,1721742661116,-500.0,0.00014794,2]
[333010138,1721742661127,-500.0,0.00014794,2]
[333010139,1721742661137,-500.0,0.00014794,2]
[333010140,1721742661147,-500.0,0.00014794,2]
[333010141,1721742661156,-500.0,0.00014794,2]
[333010142,1721742661167,-500.0,0.00014794,2]
[333010143,1721742661177,-500.0,0.00014794,2]
[333010144,1721742661187,-500.0,0.00014794,2]
[333010145,1721742661197,-500.0,0.00014794,2]
[333010146,1721742661206,-500.0,0.00014794,2]
[333010147,1721742661217,-500.0,0.00014794,2]
[333010148,1721742661226,-500.0,0.00014794,2]
[333010149,1721742661236,-207.87646135,0.00014794,2]
[333010150,1721742661246,-500.0,0.00014794,2]
[333010151,1721742661255,-500.0,0.00014794,2]
[333010152,1721742661271,-514.37510066,0.00014794,2]
[333010153,1721742661280,-500.0,0.00014794,2]
[333010154,1721742661290,-500.0,0.00014794,2]
[333010155,1721742661300,-500.0,0.00014794,2]
[333010156,1721742661309,-500.0,0.00014794,2]
[333010157,1721742661319,-500.0,0.00014794,2]
[333010158,1721742661328,-513.40465997,0.00014794,2]
[333010159,1721742661337,-500.0,0.00014794,2]
[333010160,1721742661347,-500.0,0.00014794,2]
[333010161,1721742661356,-500.0,0.00014794,2]
[333010162,1721742661366,-500.0,0.00014794,2]
[333010163,1721742661375,-500.0,0.00014794,2]
[333010164,1721742661384,-500.0,0.00014794,2]
[333010165,1721742661394,-500.0,0.00014794,2]
[333010166,1721742661404,-500.0,0.00014794,2]
[333010167,1721742661414,-500.0,0.00014794,2]
[333010168,1721742661423,-500.0,0.00014794,2]
[333010169,1721742661433,-500.0,0.00014794,2]
[333010170,1721742661443,-500.0,0.00014794,2]
[333010171,1721742661452,-500.0,0.00014794,2]
[333010172,1721742661461,-500.0,0.00014794,2]
[333010173,1721742661471,-500.0,0.00014794,2]
[333010174,1721742661480,-500.0,0.00014794,2]
[333010175,1721742661490,-500.0,0.00014794,2]
[333010176,1721742661499,-500.0,0.00014794,2]
[333010177,1721742661509,-500.0,0.00014794,2]
[333010178,1721742661524,-500.0,0.00014794,2]
[333010179,1721742661534,-500.0,0.00014794,2]
[333010180,1721742661543,-500.0,0.00014794,2]
[333010181,1721742661552,-500.0,0.00014794,2]
[333010182,1721742661561,-229.18311745,0.00014794,2]
[333010183,1721742661571,-515.20716483,0.00014794,2]
[333010184,1721742661580,-900.422296,0.00014794,2]
[333010185,1721742661589,-900.422296,0.00014794,2]
[333010186,1721742661598,-500.0,0.00014794,2]
[333010187,1721742661607,-500.0,0.00014794,2]
[333010188,1721742661617,-2153.320037,0.00014794,2]
[333010189,1721742661626,-2153.320037,0.00014794,2]
[333010190,1721742661638,-233.1862026,0.00014916,2]
[333010191,1721742661649,-1123.0,0.00014949,2]
[333010192,1721742661658,-151.0,0.00014968,2]
[333010193,1721742661668,-247.722,0.00014968,2]
[333010194,1721742661678,-173.910764,0.00014968,2]
[333010195,1721742661688,-247.722,0.00014968,2]
[333010196,1721742661698,-417.391393,0.00014968,2]
[333010197,1721742661708,-339.574316,0.00014968,2]
[333010198,1721742661718,-417.391393,0.00014968,2]
[333010199,1721742661729,-173.910764,0.00014968,2]
[333010200,1721742661739,-339.574316,0.00014968,2]
[333010201,1721742661751,-151.0,0.00014968,2]
[333010202,1721742661761,-151.0,0.00014968,2]
[333010203,1721742661777,-582.585036,0.00014968,2]
[333010204,1721742661786,-582.585036,0.00014968,2]
[333010205,1721742661796,-526.87036411,0.00014999,2]
[333010206,1721742661805,-3000.0,0.00015,2]
[333010207,1721742661816,-1835.99619335,0.00015,2]
[333010208,1721742661828,-2844.88923005,0.00015,2]
[333010209,1721742661837,-2000.0,0.00015,2]
[333010210,1721742661848,-2000.0,0.00015,2]
[333010211,1721742661860,-2796.0,0.00015,2]
[333010212,1721742661871,-2000.0,0.00015,2]
[333010213,1721742661881,-1908.64364659,0.00015,2]
[333010214,1721742661890,-683.87,0.00015056,2]
[333010215,1721742661900,-683.87,0.00015056,2]
[333010216,1721742661910,-683.87,0.00015057,2]
[333010217,1721742661924,-683.87,0.00015057,2]
[333010218,1721742661934,-683.87,0.00015057,2]
[333010219,1721742661944,-683.87,0.00015057,2]
[333010220,1721742661954,-683.87,0.00015057,2]
[333010221,1721742661965,-683.87,0.00015057,2]
[333010222,1721742661974,-683.87,0.00015057,2]
[333010223,1721742661983,-683.87,0.00015057,2]
[333010224,1721742661994,-683.87,0.00015057,2]
[333010225,1721742662003,-683.87,0.00015057,2]
[333010226,1721742662013,-683.87,0.00015057,2]
[333010227,1721742662027,-103.17954499,0.00015057,2]
[333010228,1721742662422,-756.17,0.00013698,2]
[333010229,1721742662432,-618.78041697,0.00013698,2]
[333010230,1721742662442,-580.69045501,0.00015057,2]
[333010231,1721742662452,-683.87,0.00015057,2]
[333010232,1721742662461,-68.07489959,0.00015058,2]
[333010233,1721742662524,-82.92510041,0.00015058,2]
[333010234,1721742662533,-151.0,0.00015058,2]
[333010235,1721742662542,-683.87,0.00015066,2]
[333010236,1721742662551,-683.87,0.00015067,2]
[333010237,1721742662561,-683.87,0.00015067,2]
[333010238,1721742662570,-428.32534459,0.00015067,2]
[333010239,1721742662582,-255.54465541,0.00015067,2]
[333010240,1721742662590,-683.87,0.00015067,2]
[333010241,1721742662599,-267.01897409,0.00015067,2]
[333010242,1721742662610,-416.96102591,0.00015067,2]
[333010243,1721742662619,-70.75047182,0.00015068,5]
[333010244,1721742662631,-12217.225933,0.00015068,5]
[333010249,1721743291989,3000.0,7.2e-05,2]
[333010250,1721743358479,1460.16571215,7.2e-05,2]
[333010252,1721743389231,-250.0,9.53e-05,2]
[333010253,1721743389256,-250.0,9.556e-05,2]
[333010254,1721743389280,-250.0,9.582e-05,2]
[333010255,1721743389304,-250.0,9.609e-05,2]
[333010256,1721743389328,-250.0,9.635e-05,2]
[333010257,1721743389350,-250.0,9.661e-05,2]
[333010258,1721743389372,-250.0,9.687e-05,2]
[333010259,1721743390915,250.0,9.435e-05,2]
[333010260,1721743399548,250.0,9.616e-05,2]
[333010261,1721743406761,16271.74675903,7.2e-05,2]
[333010262,1721743408728,250.0,9.616e-05,2]
[333010263,1721743417938,250.0,9.616e-05,2]
[333010463,1721743838885,-300.0,8.889e-05,2]
[333010464,1721743838896,-300.0,8.979e-05,2]
[333010465,1721743838906,-24900.0,8.98e-05,2]
[333010466,1721743838916,-250.0,9.713e-05,2]
[333010467,1721743838926,-250.0,9.739e-05,2]
[333010468,1721743838936,-250.0,9.765e-05,2]
[333010469,1721743838946,-250.0,9.792e-05,2]
[333010470,1721743838955,-250.0,9.818e-05,2]
[333010471,1721743838964,-250.0,9.844e-05,2]
[333010472,1721743838973,-250.0,9.87e-05,2]
[333010473,1721743838983,-420.0,9.876e-05,2]
[333010474,1721743838993,-250.0,9.896e-05,2]
[333010475,1721743839005,-250.0,9.922e-05,2]
[333010476,1721743839015,-250.0,9.948e-05,2]
[333010477,1721743839024,-250.0,9.974e-05,2]
[333010478,1721743839033,-154.76012181,9.999e-05,2]
[333010479,1721743839042,-319.40039305,9.999e-05,2]
[333010480,1721743839051,-188.04294313,9.999e-05,2]
[333010481,1721743839061,-403.32733275,9.999e-05,2]
[333010482,1721743839070,-805.6785335,9.999e-05,2]
[333010483,1721743839080,-180.29524211,9.999e-05,2]
[333010484,1721743839089,-154.76012181,9.999e-05,2]
[333010485,1721743839100,-154.76012181,9.999e-05,2]
[333010486,1721743839111,-154.76012181,9.999e-05,2]
[333010487,1721743839122,-404.34085405,9.999e-05,2]
[333010488,1721743839132,-154.76012181,9.999e-05,2]
[333010489,1721743839141,-196.26871937,9.999e-05,2]
[333010490,1721743839153,-154.77557542,9.999e-05,2]
[333010491,1721743839164,-156.34749411,9.999e-05,2]
[333010492,1721743839174,-521.4865626,9.999e-05,2]
[333010493,1721743839184,-182.73915488,9.999e-05,2]
[333010494,1721743839194,-309.39854548,9.999e-05,2]
[333010495,1721743839204,-154.84019416,9.999e-05,2]
[333010496,1721743839214,-154.79103211,9.999e-05,2]
[333010497,1721743839224,-375.64530467,9.999e-05,2]
[333010498,1721743839234,-159.80847068,9.999e-05,2]
[333010499,1721743839246,-154.77557542,9.999e-05,2]
[333010500,1721743839259,-204.48123878,9.999e-05,2]
[333010501,1721743839269,-204.81638938,9.999e-05,2]
[333010502,1721743839279,-201.273204,9.999e-05,2]
[333010503,1721743839291,-154.77557542,9.999e-05,2]
[333010504,1721743839303,-154.77557542,9.999e-05,2]
[333010505,1721743839312,-968.14358809,9.999e-05,2]
[333010506,1721743839322,-266.45562097,9.999e-05,2]
[333010507,1721743839331,-493.72845005,9.999e-05,2]
[333010508,1721743839341,-154.88678402,9.999e-05,2]
[333010509,1721743839350,-154.77557542,9.999e-05,2]
[333010510,1721743839359,-154.77557542,9.999e-05,2]
[333010511,1721743839368,-156.44936091,9.999e-05,2]
[333010512,1721743839377,-542.52748339,9.999e-05,2]
[333010513,1721743839386,-663.56673998,9.999e-05,2]
[333010514,1721743839396,-519.06293676,9.999e-05,2]
[333010515,1721743839406,-726.77830691,9.999e-05,2]
[333010516,1721743839418,-309.53569723,9.999e-05,2]
[333010517,1721743839435,-154.77557542,9.999e-05,2]
[333010518,1721743839446,-531.35557493,9.999e-05,2]
[333010519,1721743839457,-567.99228217,9.999e-05,2]
[333010520,1721743839468,-154.78110387,9.999e-05,2]
[333010521,1721743839478,-154.76012181,9.999e-05,2]
[333010522,1721743839487,-154.76012181,9.999e-05,2]
[333010523,1721743839498,-848.53287184,9.999e-05,2]
[333010524,1721743839510,-533.38063441,9.999e-05,2]
[333010525,1721743839520,-267.2136378,0.0001,2]
[333010526,1721743839531,-154.77557542,0.0001,2]
[333010527,1721743839540,-204.43824148,0.0001,2]
[333010528,1721743839550,-250.0,0.00010001,2]
[333010529,1721743839560,-250.0,0.00010027,2]
[333010530,1721743839570,-587.0,0.00010864,2]
[333010531,1721743839580,-154.76012181,0.00011656,2]
[333010532,1721743839590,-823.0,0.0001195,2]
[333010533,1721743839600,-3232.22352247,0.000129,2]
[333010534,1721743839610,-3232.22352241,0.000129,2]
[333010535,1721743839621,-3232.22352241,0.00012939,2]
[333010536,1721743839631,-14439.25281162,0.00013,2]
[333010537,1721743839641,-1152.0,0.00013146,2]
[333010538,1721743839651,-200.0,0.00013425,2]
[333010539,1721743839661,-156.984614,0.00013431,2]
[333010540,1721743839671,-665.892947,0.00013431,2]
[333010541,1721743839681,-580.311458,0.00013431,2]
[333010542,1721743839691,-16842.99192364,0.00013488,2]
[333010543,1721743839700,-2000.0,0.00013488,2]
[333010544,1721743839711,-16842.99192362,0.00013516,2]
[333010545,1721743839720,-16842.99192362,0.00013543,2]
[333010546,1721743839730,-104497.207307,0.0001356,2]
[333010547,1721743839740,-16842.99192362,0.00013571,2]
[333010548,1721743839749,-16515.30336841,0.0001358,2]
[333010549,1721743839760,-1184.49572715,0.00013598,2]
[333010550,1721743839770,-16842.99192362,0.00013598,2]
[333010551,1721743839780,-736.75996205,0.00013598,2]
[333010552,1721743839789,-665.892947,0.00013599,2]
[333010553,1721743839799,-580.311458,0.00013599,2]
[333010554,1721743839809,-313491.62192,0.00013688,2]
[333010555,1721743839819,-500.0,0.00013698,2]
[333010556,1721743839829,-500.0,0.00013698,2]
[333010557,1721743839840,-500.0,0.00013698,2]
[333010558,1721743839850,-2606.84,0.00013698,2]
[333010559,1721743839860,-505.35601644,0.00013698,2]
[333010560,1721743839870,-523.86,0.00013698,2]
[333010561,1721743839880,-500.0,0.00013698,2]
[333010562,1721743839891,-500.0,0.00013698,2]
[333010563,1721743839901,-500.0,0.00013698,2]
[333010564,1721743839911,-666.56,0.00013698,2]
[333010565,1721743839921,-500.0,0.00013698,2]
[333010566,1721743839932,-500.0,0.00013698,2]
[333010567,1721743839943,-500.0,0.00013698,2]
[333010568,1721743839952,-644.39030274,0.00013698,2]
[333010569,1721743839963,-4233.63,0.00013698,2]
[333010570,1721743839973,-500.0,0.00013698,2]
[333010571,1721743839989,-1864.81,0.00013698,2]
[333010572,1721743839998,-500.0,0.00013698,2]
[333010573,1721743840011,-500.0,0.00013698,2]
[333010574,1721743840021,-500.0,0.00013698,2]
[333010575,1721743840030,-500.0,0.00013698,2]
[333010576,1721743840040,-511.8711268,0.00013698,2]
[333010577,1721743840050,-500.0,0.00013698,2]
[333010578,1721743840060,-500.0,0.00013698,2]
[333010579,1721743840070,-500.0,0.00013698,2]
[333010580,1721743840079,-500.0,0.00013698,2]
[333010581,1721743840089,-500.0,0.00013698,2]
[333010582,1721743840098,-500.0,0.00013698,2]
[333010583,1721743840108,-500.0,0.00013698,2]
[333010584,1721743840118,-500.0,0.00013698,2]
[333010586,1721743840128,-500.0,0.00013698,2]
[333010587,1721743840138,-500.0,0.00013698,2]
[333010588,1721743840148,-6035.0,0.00013698,2]
[333010589,1721743840158,-6035.0,0.00013698,2]
[333010590,1721743840168,-6035.0,0.00013698,2]
[333010591,1721743840178,-6035.0,0.00013698,2]
[333010592,1721743840188,-6035.0,0.00013698,2]
[333010594,1721743840198,-6035.0,0.00013698,2]
[333010596,1721743840208,-6035.0,0.00013698,2]
[333010597,1721743840217,-500.0,0.00013698,2]
[333010598,1721743840227,-6035.0,0.00013698,2]
[333010599,1721743840238,-6035.0,0.00013698,2]
[333010600,1721743840251,-6035.0,0.00013698,2]
[333010601,1721743840263,-6035.0,0.00013698,2]
[333010602,1721743840273,-6035.0,0.00013698,2]
[333010603,1721743840283,-6035.0,0.00013698,2]
[333010604,1721743840293,-6035.0,0.00013698,2]
[333010605,1721743840303,-6035.0,0.00013698,2]
[333010606,1721743840312,-6035.0,0.00013698,2]
[333010607,1721743840323,-6035.0,0.00013698,2]
[333010608,1721743840336,-6035.0,0.00013698,2]
[333010609,1721743840346,-6035.0,0.00013698,2]
[333010610,1721743840358,-6035.0,0.00013698,2]
[333010612,1721743840368,-6035.0,0.00013698,2]
[333010614,1721743840378,-6035.0,0.00013698,2]
[333010616,1721743840387,-6035.0,0.00013698,2]
[333010618,1721743840396,-6035.16785508,0.00013698,2]
[333010620,1721743840406,-500.0,0.00013698,2]
[333010621,1721743840416,-500.0,0.00013698,2]
[333010622,1721743840427,-500.0,0.00013698,2]
[333010623,1721743840440,-500.0,0.00013698,2]
[333010624,1721743840451,-502.25822366,0.00013698,2]
[333010625,1721743840463,-1167.15,0.00013698,2]
[333010626,1721743840474,-500.0,0.00013698,2]
[333010627,1721743840483,-500.0,0.00013698,2]
[333010628,1721743840493,-500.0,0.00013698,2]
[333010629,1721743840503,-500.0,0.00013698,2]
[333010630,1721743840514,-500.0,0.00013698,2]
[333010633,1721743840526,-500.0,0.00013698,2]
[333010635,1721743840537,-500.0,0.00013698,2]
[333010637,1721743840549,-500.0,0.00013698,2]
[333010639,1721743840559,-500.0,0.00013698,2]
[333010641,1721743840569,-500.0,0.00013698,2]
[333010642,1721743840579,-500.0,0.00013698,2]
[333010644,1721743840588,-500.0,0.00013698,2]
[333010645,1721743840598,-500.0,0.00013698,2]
[333010646,1721743840608,-500.0,0.00013698,2]
[333010647,1721743840617,-500.0,0.00013698,2]
[333010648,1721743840627,-500.0,0.00013698,2]
[333010649,1721743840637,-500.0,0.00013698,2]
[333010650,1721743840647,-500.0,0.00013698,2]
[333010651,1721743840658,-500.0,0.00013698,2]
[333010652,1721743840669,-592.28,0.00013698,2]
[333010653,1721743840678,-500.0,0.00013698,2]
[333010654,1721743840688,-500.0,0.00013698,2]
[333010655,1721743840697,-4600.45,0.00013698,2]
[333010656,1721743840707,-500.0,0.00013698,2]
[333010657,1721743840716,-500.0,0.00013698,2]
[333010658,1721743840725,-647.95174417,0.00013698,2]
[333010659,1721743840735,-811.14,0.00013698,2]
[333010660,1721743840745,-500.0,0.00013698,2]
[333010661,1721743840754,-500.0,0.00013698,2]
[333010662,1721743840766,-500.0,0.00013698,2]
[333010663,1721743840775,-500.0,0.00013698,2]
[333010664,1721743840793,-500.0,0.00013698,2]
[333010665,1721743840805,-3227.65,0.00013698,2]
[333010667,1721743840815,-506.67046312,0.00013698,2]
[333010669,1721743840825,-500.0,0.00013698,2]
[333010670,1721743840836,-500.0,0.00013698,2]
[333010671,1721743840845,-500.0,0.00013698,2]
[333010672,1721743840856,-500.0,0.00013698,2]
[333010673,1721743840866,-542.51035399,0.00013698,2]
[333010674,1721743840876,-500.0,0.00013698,2]
[333010675,1721743840886,-500.0,0.00013698,2]
[333010676,1721743840896,-500.0,0.00013698,2]
[333010677,1721743840907,-500.0,0.00013698,2]
[333010678,1721743840917,-500.0,0.00013698,2]
[333010679,1721743840927,-500.0,0.00013698,2]
[333010680,1721743840937,-500.0,0.00013698,2]